Cogmind - Beta 15 @@@ ROGUE MODE // 2025.08.30 @ 14:05:59 Player: Prof Griz Result: Destroyed by S-27 Virus with Autogun Performance ------------- Evolutions (3) 1500 Regions Visited (6) 1200 Robots Destroyed (39) 195 Value Destroyed (1284) 1284 Prototype IDs (5) 100 Alien Tech Used (0) 0 Bonus (0) 0 TOTAL SCORE: 4279 Bonus ------- None Cogmind --------- Core Integrity 0/700 Matter 283/300 Energy 100/100 System Corruption 4% Temperature Cool (0) Movement Hovering (100) Location -7/Storage Parts ------- > --- POWER (2) -------- Backup Power III > --- PROPULSION (4) --- Light Treads Backup Propulsion III > --- UTILITY (4) ------ Advanced Visual Processing Unit Improved Light Armor Plating > --- WEAPON (3) ------- (None) > --- INVENTORY (5) ---- Armored Huge Wheel Armored Huge Wheel Peak State ------------ > --- POWER ------------ Light Nuclear Core > --- PROPULSION ------- Cooled VTOL Module Cooled VTOL Module Cooled VTOL Module Cooled VTOL Module > --- UTILITY ---------- Medium Matter Pod Advanced Visual Processing Unit Targeting Computer Improved Weapon Shielding > --- WEAPON ----------- Heavy Assault Rifle Enhanced Autogun > --- INVENTORY -------- Mini Grenade Launcher [Rating: 37] Favorites ----------- Power Improved Ion Engine Engine Improved Ion Engine Power Core Light Nuclear Core Propulsion Advanced Treads Treads Advanced Treads Leg Titanium Leg Wheel Wheel Hover Unit Backup Propulsion III Flight Unit Cooled VTOL Module Utility Core Shielding Device Bomb Drone Bay Storage Medium Matter Pod Processor Advanced Visual Processing Unit Protection Core Shielding Weapon Heavy Assault Rifle Energy Gun Medium Laser Ballistic Gun Heavy Assault Rifle Launcher Rocket Array Build | -11 -10 -10 -9 -8 -7 -7 ------- Run | Yrd Mat Min Mat Mat Fac Sto Slots Evolved 6 | . . . 2 2 2 . Power 1 | . . . . . 1 . Propulsion 2 | . . . 1 1 . . Utility 2 | . . . 1 1 . . Weapon 1 | . . . . . 1 . Parts Attached 50 | 6 2 3 6 24 1 8 Power 3 | 1 . 1 . 1 . . Engine 2 | 1 . 1 . . . . Core 1 | . . . . 1 . . Reactor . | . . . . . . . Propulsion 21 | 2 . . 3 14 1 1 Treads 5 | . . . 3 1 . 1 Leg 4 | . . . . 4 . . Wheel 8 | 2 . . . 5 1 . Hover . | . . . . . . . Flight 4 | . . . . 4 . . Utility 11 | 1 2 1 1 5 . 1 Device 1 | . . 1 . . . . Storage 3 | 1 1 . . 1 . . Processor 4 | . 1 . . 3 . . Hackware . | . . . . . . . Protection 3 | . . . 1 1 . 1 Artifact . | . . . . . . . Weapon 15 | 2 . 1 2 4 . 6 Energy Gun 2 | 1 . . . . . 1 Energy Cannon . | . . . . . . . Ballistic Gun 8 | 1 . 1 2 4 . . Ballistic Cannon . | . . . . . . . Launcher 5 | . . . . . . 5 Special Weapon . | . . . . . . . Impact Weapon . | . . . . . . . Slashing Weapon . | . . . . . . . Piercing Weapon . | . . . . . . . Special Melee Weapon . | . . . . . . . Unidentified Prototypes 5 | . . 1 1 2 . 1 Parts Lost 22 | . . . . 5 . 17 Power 3 | . . . . 1 . 2 Propulsion 8 | . . . . 3 . 5 Utility 3 | . . . . . . 3 Weapon 8 | . . . . 1 . 7 Highest Loss Streak 14 | . . . . 4 . 14 To Critical Strikes . | . . . . . . . Average Backups 3 | 1 4 4 3 2 3 1 Power . | . 1 . . . . . Propulsion . | . 2 . . . 1 1 Utility 1 | . 1 4 3 . . . Weapon . | . . . . 1 2 . Tool/Special . | . . . . . . . Unused Backups 6 | . . 4 . . . 2 Power 1 | . . 1 . . . . Propulsion 4 | . . 2 . . . 2 Utility . | . . . . . . . Weapon 1 | . . 1 . . . . Tool/Special . | . . . . . . . Average Slot Usage (%) 74 | . 92 75 78 90 80 47 Engine 8 | . 14 14 11 4 . 5 Core 1 | . . . . 3 7 1 Treads 13 | . . . 30 20 . 4 Wheel 10 | . 28 28 2 6 27 6 Device 4 | . . 13 11 . . . Storage 3 | . 14 . . 8 7 2 Processor 8 | . 7 . . 17 15 9 Protection 6 | . . . 10 9 7 5 Energy Gun 2 | . 14 4 . . . 3 Ballistic Gun 12 | . 14 14 14 16 15 3 Peak Build Rating 37 | 6 7 20 32 37 27 27 Average Rating 21 | 4 6 19 28 22 23 17 On Entrance 16 | . 6 7 20 32 21 27 Naked Turns . | . . . . . . . Heaviest Build 22 | 13 13 18 22 16 15 15 Greatest Support 86 | 26 26 26 66 86 48 48 Greatest Overweight (x) 4 | . . . . 4 . 4 Average Overweight (x) . | . . . . . . . Largest Inventory Capacity 25 | 8 25 8 5 5 5 5 Average Capacity 5 | 7 8 5 5 5 5 5 Most Carried 8 | 3 7 8 5 5 5 4 Average Carried 3 | 2 4 4 3 2 3 1 Final Capacity 8 | 8 8 5 5 5 5 5 Final Carried 7 | 3 7 4 5 3 4 4 Class Distribution -------------------- 85% | Mutant 14% | Scavenger-Mutant Dominant Class ---------------- Mutant | -10/Materials Mutant | -10/Mines Mutant | -9/Materials Mutant | -8/Materials Scavenger-Mutant | -7/Factory Mutant | -7/Storage Resources | -11 -10 -10 -9 -8 -7 -7 ----------- Run | Yrd Mat Min Mat Mat Fac Sto Matter Collected 1295 | 228 . 191 117 513 . 246 Remotely . | . . . . . . . Salvage Created 1366 | . 19 47 190 565 . 545 Parts 73 | . 2 6 10 37 . 18 Haulers Intercepted . | . . . . . . . Recyclers Shooed . | . . . . . . . Parts Field Recycled . | . . . . . . . Retrieved Matter . | . . . . . . . Parts Self-Destructed . | . . . . . . . Prevented . | . . . . . . . Kills | -11 -10 -10 -9 -8 -7 -7 ------- Run | Yrd Mat Min Mat Mat Fac Sto Combat Hostiles Destroyed 27 | . . 3 3 10 . 11 Melee 2 | . . . . . . 2 Guns 21 | . . 3 2 10 . 6 AOE 4 | . . . 1 . . 3 Classes Destroyed 10 | . 1 1 2 2 . 4 Worker 4 | . . . . 4 . . Builder 1 | . . . . . . 1 Recycler 1 | . . . . . . 1 Operator 1 | . . . . 1 . . Watcher 5 | . 1 . 2 1 . 1 Swarmer 5 | . . 3 . 2 . . Grunt 10 | . . . 2 4 . 4 Sentry 7 | . . . 1 4 . 2 Hunter 3 | . . . . . . 3 Programmer 2 | . . . . . . 2 Best Kill Streak 7 | . 1 3 2 7 . 4 Combat Bots Only 5 | . . 3 1 5 . 3 Max Kills in Single Turn 2 | . 1 1 1 2 . 2 Gunslinging 1 | . . . . 1 . . Exploded 2 | . . . 1 . . 2 Melee 1 | . . . . . . 1 Uniques/NPCs Destroyed . | . . . . . . . Combat | -11 -10 -10 -9 -8 -7 -7 -------- Run | Yrd Mat Min Mat Mat Fac Sto Hostile Shots Fired 432 | . . 22 28 114 . 268 Missed 123 | . . 3 2 27 . 91 Hits 309 | . . 19 26 87 . 177 Projectile 309 | . . 19 26 87 . 177 Critical Strikes 4 | . . . . 3 . 1 Damage Taken 4055 | . . 148 432 1128 . 2347 Core 886 | . . 28 38 119 . 701 Absorbed by Shields . | . . . . . . . Redirected to Shielding 137 | . . . 9 24 . 104 Core Remaining (%) 89 | 100 . 88 90 78 . . Volleys Fired 122 | . 2 7 25 46 . 42 Largest 3 | . 2 2 2 2 . 3 Hottest 135 | . 70 70 46 50 . 135 Shots Fired 191 | . 4 14 34 72 . 67 Gun 183 | . 4 14 34 72 . 59 Cannon . | . . . . . . . Launcher 8 | . . . . . . 8 Special . | . . . . . . . Kinetic 158 | . 2 7 34 72 . 43 Thermal 25 | . 2 7 . . . 16 Explosive 8 | . . . . . . 8 Electromagnetic . | . . . . . . . Robot Hit Streak 12 | . 1 4 7 11 . 12 Robot Miss Streak 4 | . 2 4 2 4 . 3 Penetration Max . | . . . . . . . Secondary Targets 3 | . . 1 . 2 . . Max Gunslinging Chain 1 | . . 1 . 1 . . Shots Hit Robots 124 | . 1 7 25 48 . 43 Core Hits 91 | . 1 4 8 25 . 53 Critical Kills 1 | . . . . 1 . . Critical Parts Destroyed 1 | . . . . 1 . . Critical Strikes 3 | . . 1 . 2 . . Burn 1 | . . 1 . . . . Destroy 2 | . . . . 2 . . Melee Attacks . | . . . . . . . Impact . | . . . . . . . Slashing . | . . . . . . . Piercing . | . . . . . . . Sneak Attacks . | . . . . . . . Combat Hostiles . | . . . . . . . Follow-up Attacks . | . . . . . . . Damage Inflicted 2910 | . 25 79 395 915 . 1496 Guns 2164 | . 25 79 395 914 . 751 Cannons . | . . . . . . . Explosions 663 | . . . . . . 663 Melee . | . . . . . . . Ramming 83 | . . . . 1 . 82 Kinetic 1724 | . . 30 395 914 . 385 Thermal 440 | . 25 49 . . . 366 Explosive 663 | . . . . . . 663 Electromagnetic . | . . . . . . . Impact . | . . . . . . . Slashing . | . . . . . . . Piercing . | . . . . . . . Highest Corruption 4 | . . . . 4 . 4 Average Corruption 2 | . . . . 4 . 2 Corruption Purged . | . . . . . . . Corruption Blocked . | . . . . . . . Effects 8 | . . . . 2 . 6 Message Errors 2 | . . . . 1 . 1 Matter Fused 1 | . . . . . . 1 Heat Flow Errors 2 | . . . . 1 . 1 Energy Discharges 1 | . . . . . . 1 Misfires 1 | . . . . . . 1 Weapon Failures 1 | . . . . . . 1 Overload Shots . | . . . . . . . Overflow Damage 50 | . . . . . . 50 Projectiles . | . . . . . . . Explosions 50 | . . . . . . 50 Melee . | . . . . . . . Knockbacks . | . . . . . . . Impact . | . . . . . . . Kinetic . | . . . . . . . Secondary . | . . . . . . . Self-Inflicted Damage 439 | . . . . . . 439 Shots 18 | . . . . . . 18 Rammed 24 | . . . . 1 . 23 Targets Rammed 24 | . . . . 1 . 23 Kicked . | . . . . . . . Crushed . | . . . . . . . Highest Temperature 430 | . 30 100 2 430 . 205 Average Temperature 56 | . 18 48 2 75 . 47 Received Heat Transfer 1017 | . . . 144 387 . 486 Siege Activations . | . . . . . . . Martial Activations . | . . . . . . . Shielding Activations . | . . . . . . . Robots Disrupted . | . . . . . . . Combat Hostiles . | . . . . . . . Robots Corrupted . | . . . . . . . Combat Hostiles . | . . . . . . . Parts Fried . | . . . . . . . Impact Corruptions . | . . . . . . . Robots Melted . | . . . . . . . Combat Hostiles . | . . . . . . . Parts Melted . | . . . . . . . Heat Transferred 1071 | . 74 222 . . . 775 Parts Sabotaged . | . . . . . . . Parts Stolen . | . . . . . . . Parts Stripped . | . . . . . . . Power Chain Reactions . | . . . . . . . Alert | -11 -10 -10 -9 -8 -7 -7 ------- Run | Yrd Mat Min Mat Mat Fac Sto Maximum Alert Level . | . . . . . . . Low Security (%) 100 | 100 100 100 100 100 100 100 Level 1 . | . . . . . . . Level 2 . | . . . . . . . Level 3 . | . . . . . . . Level 4 . | . . . . . . . Level 5 . | . . . . . . . High Security . | . . . . . . . Max Security . | . . . . . . . Peak Influence 143 | . 7 60 45 143 33 112 Initial 33 | . . . . . 33 5 Average 30 | . 1 11 3 49 26 53 Influence Increases 937 | . 7 70 124 293 . 443 Destroy 0b10 Robot/C 540 | . . 60 60 200 . 220 Destroy 0b10 Robot/NC 60 | . 5 . 10 30 . 15 Destroy Leader 170 | . 2 10 24 62 . 72 Successful Hack 16 | . . . . . . 16 Disable Machine 45 | . . . . . . 45 Destroy Structure 61 | . . . . 1 . 60 Lose Combat Pursuer 45 | . . . 30 . . 15 Influence Decreases 869 | . 7 70 124 218 62 388 Entered New Map 50 | . . . . . 42 8 Time Decay 556 | . 7 70 69 168 20 222 Lost Part 208 | . . . . 50 . 158 Lost Ally 55 | . . . 55 . . . Squads Dispatched 7 | . . . 1 1 . 5 Investigation 1 | . . . 1 . . . Extermination 1 | . . . . . . 1 Reinforcement 5 | . . . . 1 . 4 Assault . | . . . . . . . Garrison . | . . . . . . . Intercept . | . . . . . . . Searches Triggered . | . . . . . . . Construction Impeded . | . . . . . . . Haulers Reinforced 2 | . . . . . . 2 Active Scanning Responses . | . . . . . . . Cargo Convoy Interrupts . | . . . . . . . Stealth | -11 -10 -10 -9 -8 -7 -7 --------- Run | Yrd Mat Min Mat Mat Fac Sto Distress Signals 2 | . . . . . . 2 Communications Jammed . | . . . . . . . Distress Signals . | . . . . . . . Times Spotted 64 | . 2 6 22 13 . 21 Peak Tracking Total 6 | . 1 3 4 5 . 6 Tactical Retreats 3 | . . . 2 . . 1 Traps | -11 -10 -10 -9 -8 -7 -7 ------- Run | Yrd Mat Min Mat Mat Fac Sto Traps Triggered . | . . . . . . . Indirectly . | . . . . . . . Trap Hack Attempts . | . . . . . . . Triggered . | . . . . . . . Disarmed . | . . . . . . . Reprogrammed . | . . . . . . . Reused . | . . . . . . . Traps Extracted . | . . . . . . . Installed . | . . . . . . . Triggered . | . . . . . . . Machines | -11 -10 -10 -9 -8 -7 -7 ---------- Run | Yrd Mat Min Mat Mat Fac Sto Machines Disabled 3 | . . . . . . 3 Max in Single Turn 1 | . . . . . . 1 Machines Repaired . | . . . . . . . Machines Dismantled . | . . . . . . . Machines Sabotaged . | . . . . . . . Overloaded Fab Kills . | . . . . . . . Hacking | -11 -10 -10 -9 -8 -7 -7 --------- Run | Yrd Mat Min Mat Mat Fac Sto Machines Accessed 2 | . . 1 . . . 1 Terminals . | . . . . . . . Fabricators . | . . . . . . . Repair Stations 1 | . . . . . . 1 Recycling Units . | . . . . . . . Scanalyzers . | . . . . . . . Garrison Access . | . . . . . . . Total Hacks 2 | . . 1 . . . 1 Successful 2 | . . 1 . . . 1 Failed . | . . . . . . . Catastrophic . | . . . . . . . Database Lockouts . | . . . . . . . Manual . | . . . . . . . Terminals . | . . . . . . . Fabricators . | . . . . . . . Repair Stations 1 | . . . . . . 1 Recycling Units . | . . . . . . . Scanalyzers . | . . . . . . . Garrison Access . | . . . . . . . Terminal Hacks 1 | . . 1 . . . . Open Door 1 | . . 1 . . . . Fabricator Hacks . | . . . . . . . Repair Station Hacks 1 | . . . . . . 1 Refit 1 | . . . . . . 1 Recycling Unit Hacks . | . . . . . . . Scanalyzer . | . . . . . . . Garrison Access Hacks . | . . . . . . . Unauthorized Hacks . | . . . . . . . Terminals . | . . . . . . . Fabricators . | . . . . . . . Repair Stations . | . . . . . . . Recycling Units . | . . . . . . . Scanalyzers . | . . . . . . . Garrison Access . | . . . . . . . Data Cores Recovered 2 | . . . 1 1 . . Used . | . . . . . . . Hacking Detections . | . . . . . . . Full Trace Events . | . . . . . . . Feedback Events . | . . . . . . . Feedback Blocked . | . . . . . . . Robot Schematics Acquired . | . . . . . . . Robots Built . | . . . . . . . Authchips . | . . . . . . . Time . | . . . . . . . Total Robot Build Rating . | . . . . . . . Part Schematics Acquired . | . . . . . . . Parts Built . | . . . . . . . Authchips . | . . . . . . . Time . | . . . . . . . Total Part Build Rating . | . . . . . . . Parts Repaired . | . . . . . . . Time . | . . . . . . . Parts Recycled . | . . . . . . . Recycled Matter . | . . . . . . . Retrieved Matter . | . . . . . . . Retrieved Components . | . . . . . . . Parts Scanalyzed . | . . . . . . . Part Schematics Acquired . | . . . . . . . Parts Damaged . | . . . . . . . Bothacking | -11 -10 -10 -9 -8 -7 -7 ------------ Run | Yrd Mat Min Mat Mat Fac Sto Used RIF Installer . | . . . . . . . Robots Hacked . | . . . . . . . Non-combat . | . . . . . . . Combat . | . . . . . . . Robot Hacks Applied . | . . . . . . . Relay Couplers Released . | . . . . . . . Fabnet Peak Effective % . | . . . . . . . Robots Rewired . | . . . . . . . Allies Hacked . | . . . . . . . Hacks Repelled . | . . . . . . . Allies | -11 -10 -10 -9 -8 -7 -7 -------- Run | Yrd Mat Min Mat Mat Fac Sto Total Allies . | . . . . . . . Largest Group . | . . . . . . . Highest-Rated Group . | . . . . . . . Highest-Rated Ally . | . . . . . . . Total Orders . | . . . . . . . Ally Attacks 17 | . . 1 16 . . . Total Damage . | . . . . . . . Kills . | . . . . . . . Allies Corrupted . | . . . . . . . Allies Melted . | . . . . . . . Intel | -11 -10 -10 -9 -8 -7 -7 ------- Run | Yrd Mat Min Mat Mat Fac Sto Active Infowar (turns) 1082 | . . . . 601 42 439 Optics 1082 | . . . . 601 42 439 Robot Analysis Total . | . . . . . . . Derelict Logs Recovered 1 | . . 1 . . . . Drone Launches 18 | . . 6 12 . . . Drone Recoveries 2 | . . . 2 . . . Exploration | -11 -10 -10 -9 -8 -7 -7 ------------- Run | Yrd Mat Min Mat Mat Fac Sto Turns Passed 2060 | 59 71 391 430 602 42 465 Spaces Moved 1335 | 51 65 376 247 288 45 263 Core 46 | 3 . . . 4 . 39 Treads 406 | . . . 223 160 . 23 Legs 11 | . . . . 11 . . Wheels 742 | 48 65 376 24 104 45 80 Hover 121 | . . . . . . 121 Flight 9 | . . . . 9 . . Fastest Speed 50 | 50 90 90 90 80 80 50 Average Speed 112 | 87 90 90 139 126 82 117 Slowest Speed 250 | 90 90 90 145 250 86 250 Overloaded Moves . | . . . . . . . Propulsion Burnouts . | . . . . . . . Robots Hopped . | . . . . . . . Potential Cave-ins . | . . . . . . . Cave-ins Triggered . | . . . . . . . Exploration Rate (%) 32 | 4 15 69 53 30 2 52 Regions Visited 6 Branch Regions 2 Pre-discovered Areas 1 | . . 1 . . . . Known Exits Taken . | . . . . . . . Unknown Exits Taken 6 | 1 1 1 1 1 1 . Scrap Searched 1 | . . 1 . . . . Spaces Dug . | . . . . . . . Terrain Destroyed 63 | . . . . . . 63 Melee . | . . . . . . . Projectile . | . . . . . . . AOE 63 | . . . . . . 63 Terrain Rammed . | . . . . . . . Walls Destroyed . | . . . . . . . Machines Disabled . | . . . . . . . Actions | -11 -10 -10 -9 -8 -7 -7 --------- Run | Yrd Mat Min Mat Mat Fac Sto Total 1740 | 65 74 419 299 477 51 355 Wait 96 | . . 20 12 56 . 8 Move 1329 | 50 64 375 246 287 44 263 Hop . | . . . . . . . Pick Up 67 | 9 5 5 7 30 3 8 Fast Attach 1 | . . . . 1 . . Attach 50 | 6 2 1 4 26 1 10 Detach 3 | . 1 1 . 1 . . Swap 8 | . . 2 2 4 . . Drop 40 | . . 8 3 25 3 1 Fire 122 | . 2 7 25 46 . 42 Melee . | . . . . . . . Ram 21 | . . . . . . 21 Kick . | . . . . . . . Crush 3 | . . . . 1 . 2 Escape Stasis . | . . . . . . . Rewire . | . . . . . . . Trap . | . . . . . . . Miscellaneous . | . . . . . . . Route ------- -11/Scrapyard -10/Materials -10/Mines -9/Materials (discovered 2 exits: *Mat / Min) -8/Materials -7/Factory -7/Storage History --------- Turn | Location | Event 30 | -11/Scrapyard | Discovered new exit (range 15) 60 | -11/Scrapyard | Entered Materials 120 | -10/Materials | Discovered new exit (range 6) 131 | -10/Materials | Entered Mines 135 | -10/Mines | Found the Drone Emporium 141 | -10/Mines | Found Prototype Device 144 | -10/Mines | Identified Bomb Drone Bay 254 | -10/Mines | Received a Rocket Launcher from a helpful Derelict 310 | -10/Mines | Build established: Mutant 384 | -10/Mines | Learned location of Storage (-7) 506 | -10/Mines | Discovered new exit (range 16) 522 | -10/Mines | Entered Materials 522 | -9/Materials | Accompanied by 5 allies 522 | -9/Materials | Evolved 2 slots: Propulsion x1, Utility x1 523 | -9/Materials | Identified exit to Mines 824 | -9/Materials | Lost 3 allies 938 | -9/Materials | Discovered new exit (range 11) 952 | -9/Materials | Entered another Materials area 952 | -8/Materials | Evolved 2 slots: Propulsion x1, Utility x1 969 | -8/Materials | Lost 5 allies 1375 | -8/Materials | Lost 4 parts (3n1w) 1551 | -8/Materials | Discovered new exit (range 4) 1554 | -8/Materials | Entered Factory 1554 | -7/Factory | Evolved 2 slots: Power x1, Weapon x1 1591 | -7/Factory | Discovered new exit (range 6) 1596 | -7/Factory | Entered Storage 1747 | -7/Storage | Found Prototype Launcher 1748 | -7/Storage | Found Prototype Launcher 1750 | -7/Storage | Found Prototype Launcher 1751 | -7/Storage | Identified Rocket Array (x3) 1755 | -7/Storage | Core integrity fell below 50% 1777 | -7/Storage | Core integrity fell below 20% 1798 | -7/Storage | Lost 14 parts (5n3u6w) 2061 | -7/Storage | Destroyed by S-27 Virus with Autogun Last Messages --------------- Backup Power III destroyed. Slammed into H-55 Commando. Slug penetrates Wall. Slammed into H-55 Commando. H-55 Commando destroyed. Acquired 60 matter. Slammed into W-25 Informer. ALERT: Hostiles spotted, dispatching reinforcements to Terminal S003. R-06 Scavenger collects Lgt. Nuclear Core. K-01 Serf collects debris. R-06 Scavenger collects Carbon-fiber Leg. K-01 Serf collects debris. R-06 Scavenger collects Carbon-fiber Leg. Slammed into R-06 Scavenger. Destabilizing: System interference. Adv. Visual Processing Unit temporarily disabled. K-01 Serf collects debris. Slammed into S-27 Virus. Destabilizing: System corrupted (+1). Slammed into S-27 Virus. Map ----- +----------------------------------------------------+ | | | | | | | | | | | | | | | | | | | | | | | | | ?????????????????????????????????????????????????? | | ?????????????????????????????????????????????????? | | ?????????????????????????????????????????????????? | | ?????????????????????????????????????????????????? | | ?????????????????????????????????????????????????? | | ?????????????????????????????????????????????????? | | ?????????????????????????????????????????????????? | | ?????????????????????????????????????????????????? | | ?????????????????????????????????????????????????? | | ?????????????????????????????????????????????????? | | ?????????????????????????????????????????????????? | | ?????????????????????????????????????????????????? | | ??????????????????????############???????????????? | | ??????????????????????" /@s +??????????????? | | ??????????????????????#T#s########???????????????? | | ??????????????????####### #??????????????????????? | | ??????????????????#! ?# #??????????????????????? | | ??????????????????# # #??????????????????????? | | ??????????????????# """ # ########???????????????? | | ??????????????????# """ + /! ????????? | | ???????????????? ?# """ # ########???????????????? | | ##?????????????? ?# # #??????????????????????? | | #?????????????" ?# ?# #??????????????????????? | | #????????????? ?#######+###??#########?????????? | | #????????????? ?# #?# #?????????? | | ####+#########+#?# #?#" """ #?????????? | | + #?# #?#" """ #?????????? | | # ! #?# #?#" """ #?????????? | | # #?######+####?#T """ #?????????? | | + ^""" #??????# #????#" """ #?????????? | | ######### """ ###????# #????#" #?????????? | | # # """ # ###### ######" ! #?????????? | | # /% " + #?????????? | | #! // # ################+####?????????? | | # / # ##????????????????????????????? | | # + #?????????????????????????????? | | # # % %##????????????????????????????? | | ### +## ##????????????????????????????? | +----------------------------------------------------+ Best States ------------- Heat Dissipation 34 Energy Generation 17 Energy Capacity 265 Matter Stores 400 Matter Capacity 400 Sight Range 20 Terrain Scan Density 10 Armor Coverage 150 Core Shielding 20 Weapon Shielding 66 Evasion (%) 50 Targeting Accuracy 5 Recoil Reduction 4 Item Schematics ----------------- None Robot Schematics ------------------ None Fabricated ------------ Nothing Repaired ---------- Nothing Alien Tech Used ----------------- None Achievements -------------- Fist Fight Release The Drones! Challenges ------------ None Game ------ Seed CompositeSignalReplicator Manual? 0 Play Time 00:32:47 Cumulative 5.1 hours Start 2025.08.30 @ 13:23:31 End 2025.08.30 @ 14:05:59 Sessions 1 Manual Loads 0 Difficulty Rogue Special Mode None Game No. 13 Rogue 8 Adventurer 5 Explorer 0 Win Type - Total 0 Types 0/0/0/0/0/0/0/0/0/0 Lore% 2 Gallery% 10 Achievement% 11 Wizard Run 0 Options --------- Layout 1 ASCII 0 Keyboard 0 Movement Mouse Keybinds 0 Fullscreen 2 Font 32/SmallcapsGlow Map View 77x35 Zoom Use 0% Tactical HUD 0 Map Filters NONE Filters NONE Steam 1 RUN: 41b519a0-5b0c-4b87-b25e-c394569ff2d5